[Event "XI Continental-ch America 2016"]
[Site "San Salvador"]
[Date "2016.06.02"]
[Round "8"]
[White "Erenburg, Sergey"]
[Black "Gonzalez, Yuri"]
[Result "1/2-1/2"]
[ECO "C84"]
[WhiteElo "2587"]
[BlackElo "2555"]
[PlyCount "44"]
[EventDate "2016.??.??"]
[EventCountry "ESA"]
[TimeControl "40/5400+30:1800+30"]
[WhiteClock "0:24:03"]
[BlackClock "0:31:40"]

1. e4 {[%emt 0:00:00]} e5 {[%emt 0:00:00]} 2. Nf3 {[%emt 0:00:00]} Nc6 {
[%emt 0:00:00]} 3. Bb5 {[%emt 0:00:00]} a6 {[%emt 0:00:07]} 4. Ba4 {[%emt 0:00:
00]} Nf6 {[%emt 0:00:15]} 5. O-O {[%emt 0:00:00]} Be7 {[%emt 0:00:14]} 6. d3 {
[%emt 0:00:05]} b5 {[%emt 0:02:44]} 7. Bb3 {[%emt 0:00:01]} d6 {[%emt 0:00:10]}
8. a4 {[%emt 0:00:17]} b4 {[%emt 0:00:45]} 9. a5 {[%emt 0:02:53]} O-O {[%emt 0:
00:24]} 10. Nbd2 {[%emt 0:00:13]} Be6 {[%emt 0:00:47]} 11. Nc4 {[%emt 0:00:47]}
Rb8 {[%emt 0:00:34]} 12. h3 {[%emt 0:01:48]} h6 {[%emt 0:00:43]} 13. Re1 {
[%emt 0:01:06]} Re8 {[%emt 0:10:22]} 14. Be3 {[%emt 0:36:48]} Bf8 {[%emt 0:01:
06]} 15. Ba4 {[%emt 0:10:11]} Bd7 {[%emt 0:00:23]} 16. c3 {[%emt 0:00:40]} bxc3
{[%emt 0:11:16]} 17. bxc3 {[%emt 0:03:49]} g6 18. Nh2 {[%emt 0:09:49]} Bg7 {
[%emt 0:18:38]} 19. Qf3 {[%emt 0:03:13]} Qe7 {[%emt 0:01:08]} 20. Nf1 {[%emt 0:
01:01]} Nd8 {[%emt 0:09:54]} 21. Bc2 {[%emt 0:01:47]} Ne6 {[%emt 0:03:53]} 22.
Bd2 {[%emt 0:02:29]} Nh7 {[%emt 0:05:57]} 1/2-1/2

[Event "XI Continental-ch America 2016"]
[Site "San Salvador"]
[Date "2016.06.02"]
[Round "8"]
[White "Juarez, Carlos"]
[Black "Flores, Diego"]
[Result "0-1"]
[ECO "B42"]
[WhiteElo "2417"]
[BlackElo "2592"]
[PlyCount "80"]
[EventDate "2016.??.??"]
[EventCountry "ESA"]
[TimeControl "40/5400+30:1800+30"]
[WhiteClock "0:02:07"]
[BlackClock "0:03:32"]

1. e4 {[%emt 0:00:00]} c5 {[%emt 0:00:00]} 2. Nf3 {[%emt 0:00:00]} e6 {[%emt 0:
00:00]} 3. d4 {[%emt 0:00:00]} cxd4 {[%emt 0:00:00]} 4. Nxd4 {[%emt 0:00:00]}
a6 {[%emt 0:00:00]} 5. Bd3 {[%emt 0:00:00]} Bc5 {[%emt 0:01:48]} 6. Nb3 {
[%emt 0:00:08]} Be7 {[%emt 0:00:07]} 7. a4 {[%emt 0:01:31]} d6 {[%emt 0:14:03]}
8. a5 {[%emt 0:01:13]} Bd7 {[%emt 0:02:11]} 9. O-O {[%emt 0:00:57]} Nf6 {
[%emt 0:02:58]} 10. Be3 {[%emt 0:02:26]} Bc6 {[%emt 0:01:11]} 11. N1d2 {
[%emt 0:00:19]} Nbd7 {[%emt 0:02:01]} 12. f4 {[%emt 0:05:00]} O-O {[%emt 0:08:
58]} 13. c4 {[%emt 0:04:27]} Re8 {[%emt 0:04:57]} 14. Qe2 {[%emt 0:09:07]} Bf8
{[%emt 0:00:51]} 15. Kh1 {[%emt 0:02:10]} Qc7 {[%emt 0:06:46]} 16. Bg1 {
[%emt 0:01:58]} g6 {[%emt 0:02:08]} 17. Rae1 {[%emt 0:04:12]} Bg7 {[%emt 0:00:
34]} 18. e5 {[%emt 0:05:07]} Nh5 {[%emt 0:00:54]} 19. Bd4 {[%emt 0:00:41]} Rad8
{[%emt 0:22:12]} 20. Bb1 {[%emt 0:06:36]} Nxf4 {[%emt 0:05:12]} 21. Rxf4 {
[%emt 0:00:15]} dxe5 {[%emt 0:00:04]} 22. Bb6 {[%emt 0:00:04]} Nxb6 {[%emt 0:
00:12]} 23. axb6 {[%emt 0:00:07]} Qxb6 {[%emt 0:00:17]} 24. c5 {[%emt 0:06:31]}
Qb5 {[%emt 0:06:46]} 25. Qxb5 {[%emt 0:02:00]} axb5 {[%emt 0:00:11]} 26. Rf2 {
[%emt 0:02:13]} f5 {[%emt 0:00:18]} 27. Na5 {[%emt 0:02:09]} Bh6 {[%emt 0:11:
07]} 28. Nxc6 {[%emt 0:05:34]} bxc6 {[%emt 0:00:17]} 29. Nb3 {[%emt 0:06:42]}
e4 {[%emt 0:00:30]} 30. g3 {[%emt 0:04:42]} Rd5 {[%emt 0:01:06]} 31. Kg2 {
[%emt 0:03:55]} Bf8 {[%emt 0:01:36]} 32. Rc1 {[%emt 0:06:20]} Ra8 {[%emt 0:00:
17]} 33. Rff1 {[%emt 0:07:06]} Ra4 {[%emt 0:00:22]} 34. Rf2 {[%emt 0:03:18]} h5
{[%emt 0:00:25]} 35. Rff1 {[%emt 0:02:34]} Rb4 {[%emt 0:01:00]} 36. Ba2 {
[%emt 0:04:36]} Kf7 {[%emt 0:02:08]} 37. Rc2 {[%emt 0:00:22]} Ra4 {[%emt 0:00:
38]} 38. Ra1 {[%emt 0:02:04]} Rd7 {[%emt 0:01:41]} 39. Kf2 {[%emt 0:01:01]}
Rda7 {[%emt 0:00:19]} 40. Nc1 {[%emt 0:00:28]} Bh6 {[%emt 0:00:23]} 0-1

[Event "XI Continental-ch America 2016"]
[Site "San Salvador"]
[Date "2016.06.02"]
[Round "8"]
[White "Cordova, Emilio"]
[Black "Kovalyov, Anton"]
[Result "1/2-1/2"]
[ECO "A45"]
[WhiteElo "2602"]
[BlackElo "2602"]
[PlyCount "37"]
[EventDate "2016.??.??"]
[EventCountry "ESA"]
[TimeControl "40/5400+30:1800+30"]
[WhiteClock "0:46:45"]
[BlackClock "1:13:17"]

1. d4 {[%emt 0:00:00]} Nf6 {[%emt 0:00:00]} 2. Nc3 {[%emt 0:00:10]} d5 {
[%emt 0:00:55]} 3. Bf4 {[%emt 0:00:06]} e6 {[%emt 0:02:59]} 4. e3 {[%emt 0:00:
30]} Bd6 {[%emt 0:01:42]} 5. Nf3 {[%emt 0:05:07]} Bxf4 {[%emt 0:01:43]} 6. exf4
{[%emt 0:00:07]} O-O {[%emt 0:00:35]} 7. Bd3 {[%emt 0:00:35]} b6 {[%emt 0:00:
18]} 8. Ne2 {[%emt 0:06:25]} Ba6 {[%emt 0:00:48]} 9. Ne5 {[%emt 0:02:25]} c5 {
[%emt 0:02:58]} 10. c3 {[%emt 0:02:58]} Bxd3 {[%emt 0:01:43]} 11. Qxd3 {
[%emt 0:01:28]} Qd6 {[%emt 0:00:23]} 12. O-O {[%emt 0:01:59]} Nc6 {[%emt 0:02:
48]} 13. Rfe1 {[%emt 0:00:19]} Rac8 {[%emt 0:01:09]} 14. Rad1 {[%emt 0:01:42]}
Rfe8 {[%emt 0:03:31]} 15. h3 {[%emt 0:02:23]} cxd4 {[%emt 0:01:07]} 16. Nxd4 {
[%emt 0:01:49]} Nxd4 {[%emt 0:00:20]} 17. Qxd4 {[%emt 0:09:37]} Qc5 {[%emt 0:
00:25]} 18. g4 {[%emt 0:12:39]} Re7 {[%emt 0:02:19]} 19. a4 {[%emt 0:02:26]}
1/2-1/2

[Event "XI Continental-ch America 2016"]
[Site "San Salvador"]
[Date "2016.06.02"]
[Round "8"]
[White "Perez, Matias"]
[Black "Kevel, Oliva"]
[Result "0-1"]
[ECO "B49"]
[WhiteElo "2437"]
[BlackElo "2500"]
[PlyCount "84"]
[EventDate "2016.??.??"]
[EventCountry "ESA"]
[TimeControl "40/5400+30:1800+30"]
[WhiteClock "0:24:31"]
[BlackClock "0:38:05"]

1. e4 {[%emt 0:00:29]} c5 {[%emt 0:00:00]} 2. Nf3 {[%emt 0:00:06]} e6 {[%emt 0:
00:00]} 3. d4 {[%emt 0:01:28]} cxd4 {[%emt 0:00:06]} 4. Nxd4 {[%emt 0:00:06]}
Nc6 {[%emt 0:00:14]} 5. Nc3 {[%emt 0:00:05]} Qc7 {[%emt 0:00:05]} 6. Be3 {
[%emt 0:00:50]} a6 {[%emt 0:00:15]} 7. Be2 {[%emt 0:00:07]} Nf6 {[%emt 0:00:18]
} 8. O-O {[%emt 0:00:07]} Be7 {[%emt 0:00:24]} 9. f4 {[%emt 0:01:52]} d6 {
[%emt 0:00:06]} 10. Kh1 {[%emt 0:00:45]} O-O {[%emt 0:00:43]} 11. Qe1 {[%emt 0:
00:32]} Nxd4 {[%emt 0:11:03]} 12. Bxd4 {[%emt 0:00:17]} b5 {[%emt 0:01:14]} 13.
a3 {[%emt 0:00:21]} Bb7 {[%emt 0:00:13]} 14. Qg3 {[%emt 0:00:19]} Rac8 {
[%emt 0:01:26]} 15. Rae1 {[%emt 0:22:41]} Rfd8 {[%emt 0:10:14]} 16. Bd3 {
[%emt 0:00:17]} g6 {[%emt 0:09:35]} 17. f5 {[%emt 0:12:40]} e5 {[%emt 0:00:30]}
18. Be3 {[%emt 0:02:36]} Qd7 {[%emt 0:07:54]} 19. Nd5 {[%emt 0:30:29]} Bxd5 {
[%emt 0:02:47]} 20. exd5 {[%emt 0:01:34]} e4 {[%emt 0:08:53]} 21. Be2 {[%emt 0:
00:04]} Rxc2 {[%emt 0:00:51]} 22. Bd4 {[%emt 0:00:09]} Rf8 {[%emt 0:02:22]} 23.
Bc3 {[%emt 0:02:47]} Nxd5 {[%emt 0:15:26]} 24. fxg6 {[%emt 0:00:32]} Nxc3 {
[%emt 0:04:13]} 25. gxf7+ {[%emt 0:02:39]} Kh8 {[%emt 0:00:04]} 26. bxc3 {
[%emt 0:13:04]} Qe6 {[%emt 0:02:04]} 27. Bd1 {[%emt 0:03:20]} Ra2 {[%emt 0:03:
15]} 28. c4 {[%emt 0:01:02]} Bf6 {[%emt 0:04:36]} 29. cxb5 {[%emt 0:01:28]} d5
{[%emt 0:03:07]} 30. Bb3 {[%emt 0:00:14]} Rd2 {[%emt 0:01:35]} 31. Qf4 {
[%emt 0:01:57]} Bc3 {[%emt 0:00:23]} 32. Rc1 {[%emt 0:00:22]} Rd3 {[%emt 0:01:
20]} 33. Rb1 {[%emt 0:00:38]} axb5 {[%emt 0:00:21]} 34. Qg5 {[%emt 0:00:30]} e3
{[%emt 0:02:27]} 35. Bc2 {[%emt 0:00:29]} Rd2 {[%emt 0:00:20]} 36. Bf5 {
[%emt 0:00:30]} Qe5 {[%emt 0:00:42]} 37. Qh6 {[%emt 0:00:30]} Qg7 {[%emt 0:01:
30]} 38. Qxg7+ {[%emt 0:00:32]} Kxg7 {[%emt 0:00:04]} 39. Be6 {[%emt 0:00:30]}
e2 {[%emt 0:00:49]} 40. Rfc1 {[%emt 0:00:29]} Rd3 {[%emt 0:01:08]} 41. h3 {
[%emt 0:00:55]} Re3 {[%emt 0:00:00]} 42. Rxc3 {[%emt 0:06:07]} e1=Q+ {[%emt 0:
00:18]} 0-1

[Event "XI Continental-ch America 2016"]
[Site "San Salvador"]
[Date "2016.06.02"]
[Round "8"]
[White "Bruzon Batista, Lazaro"]
[Black "Ortiz Suarez, Isan Reynaldo"]
[Result "1/2-1/2"]
[ECO "D43"]
[WhiteElo "2681"]
[BlackElo "2578"]
[PlyCount "37"]
[EventDate "2016.??.??"]
[EventCountry "ESA"]
[TimeControl "40/5400+30:1800+30"]
[WhiteClock "1:17:59"]
[BlackClock "1:10:31"]

1. d4 {[%emt 0:00:00]} d5 {[%emt 0:00:00]} 2. c4 {[%emt 0:00:00]} c6 {[%emt 0:
00:04]} 3. Nc3 {[%emt 0:00:03]} Nf6 {[%emt 0:00:12]} 4. Nf3 {[%emt 0:00:34]} e6
{[%emt 0:01:06]} 5. cxd5 {[%emt 0:02:26]} exd5 {[%emt 0:01:48]} 6. Bg5 {
[%emt 0:00:15]} Be7 {[%emt 0:00:20]} 7. e3 {[%emt 0:01:39]} Bf5 {[%emt 0:01:47]
} 8. Bd3 {[%emt 0:00:15]} Bxd3 {[%emt 0:00:45]} 9. Bxf6 {[%emt 0:00:22]} Bxf6 {
[%emt 0:00:17]} 10. Qxd3 {[%emt 0:00:14]} O-O {[%emt 0:00:42]} 11. O-O {
[%emt 0:00:26]} a5 {[%emt 0:02:40]} 12. a3 {[%emt 0:02:48]} a4 {[%emt 0:03:53]}
13. Rad1 {[%emt 0:03:59]} Nd7 {[%emt 0:04:47]} 14. Rfe1 {[%emt 0:01:21]} g6 {
[%emt 0:04:59]} 15. g3 {[%emt 0:01:02]} Bg7 {[%emt 0:00:59]} 16. Kg2 {[%emt 0:
00:28]} Re8 {[%emt 0:00:29]} 17. Qc2 {[%emt 0:01:07]} Qa5 {[%emt 0:00:55]} 18.
h4 {[%emt 0:02:47]} h5 {[%emt 0:02:46]} 19. Re2 {[%emt 0:01:45]} 1/2-1/2

[Event "XI Continental-ch America 2016"]
[Site "San Salvador"]
[Date "2016.06.02"]
[Round "8"]
[White "Barrientos, Sergio"]
[Black "Mareco, Sandro"]
[Result "1/2-1/2"]
[ECO "B94"]
[WhiteElo "2466"]
[BlackElo "2625"]
[PlyCount "34"]
[EventDate "2016.??.??"]
[EventCountry "ESA"]
[TimeControl "40/5400+30:1800+30"]
[WhiteClock "1:04:57"]
[BlackClock "0:59:09"]

1. e4 {[%emt 0:00:00]} c5 {[%emt 0:00:00]} 2. Nf3 {[%emt 0:00:23]} d6 {[%emt 0:
00:00]} 3. d4 {[%emt 0:00:07]} cxd4 {[%emt 0:00:00]} 4. Nxd4 {[%emt 0:00:07]}
Nf6 {[%emt 0:00:00]} 5. Nc3 {[%emt 0:00:10]} a6 {[%emt 0:00:00]} 6. Bg5 {
[%emt 0:00:05]} Nbd7 {[%emt 0:00:00]} 7. Bc4 {[%emt 0:00:08]} Qb6 {[%emt 0:00:
00]} 8. O-O {[%emt 0:02:31]} Qxb2 {[%emt 0:00:12]} 9. Nd5 {[%emt 0:10:43]} Nxd5
{[%emt 0:02:16]} 10. Bxd5 {[%emt 0:01:47]} Qc3 {[%emt 0:10:35]} 11. Rb1 {
[%emt 0:00:43]} Qc7 {[%emt 0:11:37]} 12. Qh5 {[%emt 0:07:48]} g6 {[%emt 0:03:
52]} 13. Qf3 {[%emt 0:03:59]} e6 {[%emt 0:02:43]} 14. Qxf7+ {[%emt 0:03:36]}
Kxf7 {[%emt 0:00:29]} 15. Nxe6 {[%emt 0:00:04]} Qa5 {[%emt 0:05:07]} 16. Nd8+ {
[%emt 0:01:08]} Kg7 {[%emt 0:00:20]} 17. Ne6+ {[%emt 0:00:14]} Kf7 {[%emt 0:02:
10]} 1/2-1/2

[Event "XI Continental-ch America 2016"]
[Site "San Salvador"]
[Date "2016.06.02"]
[Round "8"]
[White "Lenderman, Aleksandr"]
[Black "Liang, Awonder"]
[Result "1-0"]
[ECO "A32"]
[WhiteElo "2614"]
[BlackElo "2410"]
[PlyCount "99"]
[EventDate "2016.??.??"]
[EventCountry "ESA"]
[TimeControl "40/5400+30:1800+30"]
[WhiteClock "0:36:15"]
[BlackClock "0:26:09"]

1. Nf3 {[%emt 0:00:00]} Nf6 {[%emt 0:00:00]} 2. c4 {[%emt 0:00:00]} c5 {
[%emt 0:00:00]} 3. d4 {[%emt 0:00:00]} cxd4 {[%emt 0:00:00]} 4. Nxd4 {[%emt 0:
00:00]} e6 {[%emt 0:00:03]} 5. Nc3 {[%emt 0:00:00]} Bb4 {[%emt 0:01:40]} 6. g3
{[%emt 0:00:01]} O-O {[%emt 0:00:57]} 7. Bg2 {[%emt 0:00:05]} d5 {[%emt 0:00:
53]} 8. cxd5 {[%emt 0:00:05]} Nxd5 {[%emt 0:00:07]} 9. Qb3 {[%emt 0:00:05]} Qa5
{[%emt 0:05:48]} 10. Bd2 {[%emt 0:00:19]} Nc6 {[%emt 0:00:58]} 11. Nxc6 {
[%emt 0:00:06]} bxc6 {[%emt 0:00:04]} 12. O-O {[%emt 0:00:06]} Bxc3 {[%emt 0:
00:25]} 13. bxc3 {[%emt 0:00:06]} Ba6 {[%emt 0:00:11]} 14. Rfd1 {[%emt 0:00:13]
} Qc5 {[%emt 0:02:00]} 15. e4 {[%emt 0:03:26]} Bc4 {[%emt 0:00:45]} 16. Qa4 {
[%emt 0:00:04]} Nb6 {[%emt 0:00:13]} 17. Qb4 {[%emt 0:00:01]} Qh5 {[%emt 0:00:
18]} 18. Be3 {[%emt 0:00:05]} Be2 {[%emt 0:11:55]} 19. Rd2 {[%emt 0:02:04]}
Rab8 {[%emt 0:14:38]} 20. Bxb6 {[%emt 0:03:13]} axb6 {[%emt 0:08:52]} 21. Qd6 {
[%emt 0:01:22]} Rfc8 {[%emt 0:07:09]} 22. a4 {[%emt 0:31:39]} Bf3 {[%emt 0:08:
50]} 23. Rb1 {[%emt 0:00:44]} h6 {[%emt 0:10:32]} 24. Qf4 {[%emt 0:15:09]} Bxg2
{[%emt 0:01:36]} 25. Kxg2 {[%emt 0:00:02]} Ra8 {[%emt 0:04:04]} 26. Rxb6 {
[%emt 0:06:15]} Rxa4 {[%emt 0:00:45]} 27. Rb7 {[%emt 0:01:58]} e5 {[%emt 0:05:
45]} 28. Qe3 {[%emt 0:00:36]} Qg6 {[%emt 0:01:12]} 29. f3 {[%emt 0:10:07]} Qe6
{[%emt 0:02:13]} 30. g4 {[%emt 0:00:42]} Ra2 {[%emt 0:01:22]} 31. Kg3 {[%emt 0:
00:41]} Rca8 {[%emt 0:03:01]} 32. Rdd7 {[%emt 0:04:27]} Rc2 {[%emt 0:04:24]}
33. Rxf7 {[%emt 0:00:43]} Qxf7 {[%emt 0:01:08]} 34. Rxf7 {[%emt 0:00:03]} Kxf7
{[%emt 0:01:10]} 35. Qd3 {[%emt 0:02:24]} Raa2 {[%emt 0:00:28]} 36. Qd7+ {
[%emt 0:00:07]} Kf8 {[%emt 0:01:24]} 37. Qf5+ {[%emt 0:00:30]} Kg8 {[%emt 0:00:
06]} 38. Qxe5 {[%emt 0:08:48]} g5 {[%emt 0:00:05]} 39. h4 {[%emt 0:01:03]} Rg2+
{[%emt 0:02:39]} 40. Kh3 {[%emt 0:00:07]} gxh4 {[%emt 0:01:11]} 41. Kxh4 {
[%emt 0:32:38]} Rh2+ {[%emt 0:07:37]} 42. Kg3 {[%emt 0:00:00]} h5 {[%emt 0:00:
58]} 43. gxh5 {[%emt 0:00:00]} Rag2+ {[%emt 0:00:05]} 44. Kf4 {[%emt 0:00:00]}
Rh4+ {[%emt 0:00:05]} 45. Ke3 {[%emt 0:00:00]} Rgh2 {[%emt 0:00:02]} 46. Qe8+ {
[%emt 0:00:00]} Kg7 {[%emt 0:00:04]} 47. Qg6+ {[%emt 0:00:00]} Kf8 {[%emt 0:00:
03]} 48. Qf6+ {[%emt 0:00:00]} Kg8 {[%emt 0:00:10]} 49. e5 {[%emt 0:00:00]}
Rxh5 {[%emt 0:00:26]} 50. e6 {[%emt 0:00:00]} 1-0

[Event "XI Continental-ch America 2016"]
[Site "San Salvador"]
[Date "2016.06.02"]
[Round "8"]
[White "Morovic Fernandez, Ivan"]
[Black "Pichot, Alan"]
[Result "1/2-1/2"]
[ECO "B41"]
[WhiteElo "2573"]
[BlackElo "2532"]
[PlyCount "110"]
[EventDate "2016.??.??"]
[EventCountry "ESA"]
[TimeControl "40/5400+30:1800+30"]
[WhiteClock "0:02:23"]
[BlackClock "0:03:21"]

1. e4 {[%emt 0:00:00]} c5 {[%emt 0:00:00]} 2. Nf3 {[%emt 0:00:00]} e6 {[%emt 0:
00:00]} 3. d4 {[%emt 0:00:00]} cxd4 {[%emt 0:00:00]} 4. Nxd4 {[%emt 0:00:00]}
a6 {[%emt 0:00:14]} 5. c4 {[%emt 0:00:37]} Nf6 {[%emt 0:01:06]} 6. Nc3 {
[%emt 0:00:11]} Qc7 {[%emt 0:00:43]} 7. Be2 {[%emt 0:00:25]} Bb4 {[%emt 0:02:
14]} 8. O-O {[%emt 0:01:16]} Bxc3 {[%emt 0:06:19]} 9. bxc3 {[%emt 0:00:18]} d6
{[%emt 0:00:30]} 10. f3 {[%emt 0:10:21]} O-O {[%emt 0:03:10]} 11. Ba3 {[%emt 0:
08:58]} Rd8 {[%emt 0:08:53]} 12. Qd2 {[%emt 0:02:40]} Nbd7 {[%emt 0:07:53]} 13.
Rfd1 {[%emt 0:03:56]} Ne5 {[%emt 0:06:53]} 14. c5 {[%emt 0:05:01]} d5 {[%emt 0:
03:44]} 15. c4 {[%emt 0:15:46]} Bd7 {[%emt 0:08:07]} 16. cxd5 {[%emt 0:04:28]}
exd5 {[%emt 0:00:06]} 17. exd5 {[%emt 0:01:35]} Nxd5 {[%emt 0:00:05]} 18. Rac1
{[%emt 0:04:50]} Re8 {[%emt 0:07:40]} 19. Nf5 {[%emt 0:20:44]} Bxf5 {[%emt 0:
05:09]} 20. Qxd5 {[%emt 0:00:04]} Rad8 {[%emt 0:03:42]} 21. Qb3 {[%emt 0:00:03]
} Nc6 {[%emt 0:06:33]} 22. Bf1 {[%emt 0:00:59]} Be6 {[%emt 0:02:03]} 23. Qb6 {
[%emt 0:04:12]} Qxb6 {[%emt 0:13:56]} 24. cxb6 {[%emt 0:00:03]} Bxa2 {[%emt 0:
00:06]} 25. Rxd8 {[%emt 0:01:22]} Nxd8 {[%emt 0:01:34]} 26. Rc8 {[%emt 0:04:58]
} Be6 {[%emt 0:00:37]} 27. Rb8 {[%emt 0:00:25]} Bd7 {[%emt 0:07:01]} 28. Bc4 {
[%emt 0:00:57]} Bc6 {[%emt 0:02:15]} 29. Be7 {[%emt 0:02:20]} Rxe7 {[%emt 0:02:
09]} 30. Rxd8+ {[%emt 0:00:04]} Be8 {[%emt 0:00:19]} 31. Bd5 {[%emt 0:03:22]}
Kf8 {[%emt 0:01:13]} 32. Rb8 {[%emt 0:00:16]} Re1+ {[%emt 0:00:53]} 33. Kf2 {
[%emt 0:00:03]} Rb1 {[%emt 0:00:13]} 34. Rxb7 {[%emt 0:00:36]} Rb5 {[%emt 0:00:
51]} 35. Bc4 {[%emt 0:01:32]} Rb4 {[%emt 0:00:45]} 36. Bxa6 {[%emt 0:01:37]}
Bc6 {[%emt 0:00:01]} 37. Rb8+ {[%emt 0:01:06]} Ke7 {[%emt 0:00:01]} 38. Ke3 {
[%emt 0:02:19]} h6 {[%emt 0:00:55]} 39. Kf2 {[%emt 0:00:51]} Rb2+ {[%emt 0:00:
22]} 40. Kg3 {[%emt 0:00:29]} Bd5 {[%emt 0:01:04]} 41. h4 {[%emt 0:08:03]} Kf6
{[%emt 0:13:59]} 42. h5 {[%emt 0:03:03]} Ra2 {[%emt 0:02:29]} 43. Bf1 {[%emt 0:
06:31]} Rb2 {[%emt 0:02:58]} 44. Kf4 {[%emt 0:00:53]} Rb3 {[%emt 0:02:06]} 45.
Be2 {[%emt 0:01:01]} Ke6 {[%emt 0:00:48]} 46. g4 {[%emt 0:03:04]} Kd6 {[%emt 0:
05:26]} 47. Kg3 {[%emt 0:03:24]} Rb2 {[%emt 0:01:53]} 48. Bd1 {[%emt 0:01:29]}
Rb4 {[%emt 0:00:46]} 49. Rd8+ {[%emt 0:02:25]} Ke6 {[%emt 0:00:35]} 50. Rb8 {
[%emt 0:02:15]} Kd6 {[%emt 0:00:02]} 51. Kf2 {[%emt 0:00:47]} f6 {[%emt 0:02:
00]} 52. Rd8+ {[%emt 0:00:40]} Kc6 {[%emt 0:01:06]} 53. Ke3 {[%emt 0:02:32]}
Rxb6 {[%emt 0:00:05]} 54. Ba4+ {[%emt 0:00:09]} Kc5 {[%emt 0:00:06]} 55. Rd7 {
[%emt 0:00:07]} Rb7 {[%emt 0:00:31] Ke4} 1/2-1/2

[Event "XI Continental-ch America 2016"]
[Site "San Salvador"]
[Date "2016.06.03"]
[Round "9"]
[White "Gonzalez, Yuri"]
[Black "Liang, Awonder"]
[Result "1/2-1/2"]
[ECO "A05"]
[WhiteElo "2555"]
[BlackElo "2410"]
[PlyCount "155"]
[EventDate "2016.??.??"]
[EventCountry "ESA"]
[TimeControl "40/5400+30:1800+30"]
[WhiteClock "0:05:15"]
[BlackClock "0:09:45"]

1. Nf3 {[%emt 0:00:00]} Nf6 {[%emt 0:00:00]} 2. c4 {[%emt 0:00:00]} b6 {
[%emt 0:00:00]} 3. Nc3 {[%emt 0:01:46]} Bb7 {[%emt 0:00:19]} 4. d4 {[%emt 0:00:
18]} e6 {[%emt 0:02:30]} 5. a3 {[%emt 0:00:43]} d5 {[%emt 0:00:40]} 6. Qc2 {
[%emt 0:00:47]} Be7 {[%emt 0:03:13]} 7. cxd5 {[%emt 0:00:34]} exd5 {[%emt 0:00:
32]} 8. Bf4 {[%emt 0:00:23]} a6 {[%emt 0:02:35]} 9. e3 {[%emt 0:01:17]} O-O {
[%emt 0:02:18]} 10. Bd3 {[%emt 0:00:51]} c5 {[%emt 0:03:25]} 11. O-O {[%emt 0:
01:45]} g6 {[%emt 0:05:54]} 12. Ne5 {[%emt 0:11:02]} Nc6 {[%emt 0:08:48]} 13.
Rad1 {[%emt 0:02:03]} cxd4 {[%emt 0:19:08]} 14. Nxc6 {[%emt 0:00:57]} Bxc6 {
[%emt 0:00:06]} 15. exd4 {[%emt 0:00:12]} Bb7 {[%emt 0:02:29]} 16. Rfe1 {
[%emt 0:02:36]} Re8 {[%emt 0:04:51]} 17. Qb3 {[%emt 0:08:34]} b5 {[%emt 0:05:
52]} 18. Bb1 {[%emt 0:16:56]} Bc8 {[%emt 0:08:59]} 19. Be5 {[%emt 0:06:24]} Be6
{[%emt 0:02:16]} 20. Ba2 {[%emt 0:01:19]} Qd7 {[%emt 0:02:41]} 21. Ne2 {
[%emt 0:04:25]} Nh5 {[%emt 0:08:48]} 22. h3 {[%emt 0:00:45]} Bg5 {[%emt 0:03:
45]} 23. g4 {[%emt 0:06:47]} Nf6 {[%emt 0:01:11]} 24. Nf4 {[%emt 0:09:15]} h5 {
[%emt 0:03:29]} 25. gxh5 {[%emt 0:08:30]} Bxf4 {[%emt 0:01:30]} 26. Bxf6 {
[%emt 0:00:07]} Kh7 {[%emt 0:03:21]} 27. Qf3 {[%emt 0:01:42]} Bh6 {[%emt 0:00:
50]} 28. Kh2 {[%emt 0:02:35]} Bg7 {[%emt 0:01:37]} 29. Bb1 {[%emt 0:02:09]} Bf5
{[%emt 0:00:40]} 30. Bxf5 {[%emt 0:03:06]} Qxf5 {[%emt 0:00:04]} 31. Qxf5 {
[%emt 0:00:59]} gxf5 {[%emt 0:00:05]} 32. Bxg7 {[%emt 0:00:14]} Kxg7 {[%emt 0:
00:14]} 33. Kg3 {[%emt 0:00:48]} Kf6 {[%emt 0:00:40]} 34. Kf4 {[%emt 0:00:22]}
Rh8 {[%emt 0:01:38]} 35. Rc1 {[%emt 0:03:54]} Rxh5 {[%emt 0:00:03]} 36. Rc6+ {
[%emt 0:00:09]} Kg7 {[%emt 0:00:04]} 37. Re3 {[%emt 0:00:39]} Rh4+ {[%emt 0:01:
20]} 38. Ke5 {[%emt 0:01:00]} Re8+ {[%emt 0:01:20]} 39. Kxd5 {[%emt 0:02:35]}
Rd8+ {[%emt 0:00:24]} 40. Ke5 {[%emt 0:00:07]} Rdxd4 {[%emt 0:00:24]} 41. Rxa6
{[%emt 0:03:23]} Rd2 {[%emt 0:07:44]} 42. Rg3+ {[%emt 0:04:51]} Kf8 {[%emt 0:
01:57]} 43. Ra8+ {[%emt 0:00:25]} Ke7 {[%emt 0:00:11]} 44. Ra7+ {[%emt 0:00:15]
} Kf8 {[%emt 0:00:40]} 45. Rf3 {[%emt 0:06:35]} Rxb2 {[%emt 0:07:04]} 46. Rxf5
{[%emt 0:01:00]} Rh7 {[%emt 0:01:13]} 47. Kf6 {[%emt 0:01:22]} Rh6+ {[%emt 0:
00:58]} 48. Kg5 {[%emt 0:00:07]} Rh7 {[%emt 0:02:54]} 49. Kf6 {[%emt 0:03:33]}
Rh6+ {[%emt 0:00:06]} 50. Ke5 {[%emt 0:00:16]} Rh7 {[%emt 0:00:14]} 51. Rf4 {
[%emt 0:04:42]} Rb3 {[%emt 0:03:38]} 52. f3 {[%emt 0:00:15]} Ke8 {[%emt 0:02:
25]} 53. Ra8+ {[%emt 0:03:47]} Ke7 {[%emt 0:01:43]} 54. h4 {[%emt 0:00:18]}
Rh5+ {[%emt 0:01:48]} 55. Kd4 {[%emt 0:00:29]} Ke6 {[%emt 0:02:21]} 56. Ra6+ {
[%emt 0:00:31]} Ke7 {[%emt 0:00:22]} 57. Ra7+ {[%emt 0:00:46]} Ke6 {[%emt 0:00:
05]} 58. Rfxf7 {[%emt 0:03:16]} Rxh4+ {[%emt 0:01:07]} 59. f4 {[%emt 0:02:39]}
Rxa3 {[%emt 0:01:12]} 60. Rfe7+ {[%emt 0:01:13]} Kf6 {[%emt 0:00:21]} 61. Rxa3
{[%emt 0:00:40]} Kxe7 {[%emt 0:00:09]} 62. Ke5 {[%emt 0:00:20]} Rh6 {[%emt 0:
00:26]} 63. Ra7+ {[%emt 0:00:06]} Kf8 {[%emt 0:00:04]} 64. Rb7 {[%emt 0:00:06]}
Rc6 {[%emt 0:00:18]} 65. Rxb5 {[%emt 0:00:10]} Kf7 {[%emt 0:00:15]} 66. Rb7+ {
[%emt 0:00:09]} Kf8 {[%emt 0:00:07]} 67. Kf5 {[%emt 0:00:22]} Ra6 {[%emt 0:00:
07]} 68. Kg5 {[%emt 0:00:07]} Rc6 {[%emt 0:00:07]} 69. Rh7 {[%emt 0:01:10]} Ra6
{[%emt 0:00:25]} 70. f5 {[%emt 0:00:38]} Rb6 {[%emt 0:00:08]} 71. Rh8+ {
[%emt 0:00:50]} Kf7 {[%emt 0:00:04]} 72. Rd8 {[%emt 0:00:12]} Ra6 {[%emt 0:00:
08]} 73. Rd7+ {[%emt 0:00:04]} Kf8 {[%emt 0:00:09]} 74. f6 {[%emt 0:00:14]} Ra1
{[%emt 0:00:04]} 75. Rd8+ {[%emt 0:00:06]} Kf7 {[%emt 0:00:04]} 76. Rd7+ {
[%emt 0:00:04]} Kf8 {[%emt 0:00:02]} 77. Rd8+ {[%emt 0:00:05]} Kf7 {[%emt 0:00:
02]} 78. Rd7+ {[%emt 0:00:04]} 1/2-1/2